[Event "*** Titled Tuesday 3|2 Blitz"]
[Site "Chess.com"]
[Date "2016.02.02"]
[Round "3"]
[White "GMG"]
[Black "VSERGUEI"]
[Result "0-1"]
[WhiteElo "2434"]
[BlackElo "2412"]
[TimeControl "180+2"]
[EndTime "11:35:50 PST"]
[Termination "VSERGUEI won by resignation"]

1. d4 {[%clk 0:03:01.9]} 1... d5 {[%clk 0:03:00.2]} 2. Bf4 {[%clk 0:02:24.2]}
2... Nf6 {[%clk 0:02:48.5]} 3. e3 {[%clk 0:02:23.8]} 3... c5 {[%clk 0:02:47.6]}
4. Nc3 {[%clk 0:02:22.1]} 4... a6 {[%clk 0:02:47.8]} 5. dxc5 {[%clk 0:02:18.5]}
5... Nc6 {[%clk 0:02:46.7]} 6. Nf3 {[%clk 0:02:18.6]} 6... Bg4 {[%clk
0:02:46.8]} 7. h3 {[%clk 0:02:16.8]} 7... Bxf3 {[%clk 0:02:46.5]} 8. gxf3 {[%clk
0:02:18.7]} 8... e6 {[%clk 0:02:43.7]} 9. Na4 {[%clk 0:02:15.9]} 9... Bxc5
{[%clk 0:02:42.4]} 10. Nxc5 {[%clk 0:02:16.4]} 10... Qa5+ {[%clk 0:02:42.5]} 11.
c3 {[%clk 0:02:11.9]} 11... Qxc5 {[%clk 0:02:43.3]} 12. Rg1 {[%clk 0:02:13.4]}
12... O-O {[%clk 0:02:42.4]} 13. Bh6 {[%clk 0:02:12.7]} 13... Ne8 {[%clk
0:02:39.4]} 14. f4 {[%clk 0:02:12.2]} 14... Kh8 {[%clk 0:02:36.9]} 15. Qg4
{[%clk 0:02:00.2]} 15... gxh6 {[%clk 0:02:28]} 16. Bd3 {[%clk 0:02:00.9]} 16...
f5 {[%clk 0:02:22.6]} 17. Qh4 {[%clk 0:01:57.4]} 17... Qe7 {[%clk 0:02:20.3]}
18. Qxh6 {[%clk 0:01:57.4]} 18... Nf6 {[%clk 0:02:09.4]} 19. O-O-O {[%clk
0:01:55.7]} 19... Rg8 {[%clk 0:02:08.6]} 20. Rg5 {[%clk 0:01:56.9]} 20... Ne4
{[%clk 0:01:59.9]} 21. Bxe4 {[%clk 0:01:55.5]} 21... fxe4 {[%clk 0:01:57.6]} 22.
Rdg1 {[%clk 0:01:48.4]} 22... Qf7 {[%clk 0:01:50]} 23. h4 {[%clk 0:01:39.6]}
23... Ne7 {[%clk 0:01:49.6]} 24. Rxg8+ {[%clk 0:01:21.1]} 24... Rxg8 {[%clk
0:01:48.8]} 25. Rxg8+ {[%clk 0:01:20.5]} 25... Kxg8 {[%clk 0:01:41]} 26. Qg5+
{[%clk 0:01:16.7]} 26... Qg7 {[%clk 0:01:39.7]} 27. Qh5 {[%clk 0:01:17.1]} 27...
Qg1+ {[%clk 0:01:33.5]} 28. Kc2 {[%clk 0:01:17.9]} 28... Qxf2+ {[%clk
0:01:32.6]} 29. Kb3 {[%clk 0:01:19.2]} 29... Ng6 {[%clk 0:01:28.7]} 30. Qg5
{[%clk 0:01:18]} 30... Qxe3 {[%clk 0:01:28.6]} 31. h5 {[%clk 0:01:12.3]} 31...
Qxf4 {[%clk 0:01:28.5]} 32. Qd8+ {[%clk 0:01:13.3]} 32... Qf8 {[%clk 0:01:28.7]}
33. Qg5 {[%clk 0:01:09.5]} 33... Qf5 {[%clk 0:01:25.3]} 34. Qd8+ {[%clk
0:01:09.6]} 34... Nf8 {[%clk 0:01:25.4]} 0-1

[Event "*** Titled Tuesday 3|2 Blitz"]
[Site "Chess.com"]
[Date "2016.02.02"]
[Round "3"]
[White "E-Shaposhnikov"]
[Black "GMVar"]
[Result "0-1"]
[WhiteElo "2508"]
[BlackElo "2709"]
[TimeControl "180+2"]
[EndTime "11:35:54 PST"]
[Termination "GMVar won by resignation"]

1. e4 {[%clk 0:02:51.8]} 1... e6 {[%clk 0:02:33.1]} 2. d3 {[%clk 0:02:49.3]}
2... d5 {[%clk 0:02:24.5]} 3. Qe2 {[%clk 0:02:43.9]} 3... Nf6 {[%clk 0:02:22.9]}
4. Nf3 {[%clk 0:02:40.9]} 4... c5 {[%clk 0:02:22.6]} 5. g3 {[%clk 0:02:41.2]}
5... Nc6 {[%clk 0:02:21.6]} 6. Bg2 {[%clk 0:02:42.4]} 6... Be7 {[%clk
0:02:22.7]} 7. O-O {[%clk 0:02:42.7]} 7... O-O {[%clk 0:02:19.1]} 8. e5 {[%clk
0:02:43]} 8... Nd7 {[%clk 0:02:18.3]} 9. c4 {[%clk 0:02:43.3]} 9... d4 {[%clk
0:02:17.2]} 10. h4 {[%clk 0:02:41.8]} 10... a6 {[%clk 0:02:14.2]} 11. Bf4 {[%clk
0:02:41.9]} 11... b5 {[%clk 0:02:12.8]} 12. Nbd2 {[%clk 0:02:42]} 12... Bb7
{[%clk 0:02:14.3]} 13. Nh2 {[%clk 0:02:32.4]} 13... Qc7 {[%clk 0:02:09.7]} 14.
Rae1 {[%clk 0:02:13.1]} 14... Nb4 {[%clk 0:02:06.5]} 15. a3 {[%clk 0:02:05.1]}
15... Bxg2 {[%clk 0:02:02.4]} 16. Kxg2 {[%clk 0:02:07]} 16... Nc6 {[%clk
0:02:03.2]} 17. Qh5 {[%clk 0:02:04.5]} 17... bxc4 {[%clk 0:02:01.3]} 18. Nxc4
{[%clk 0:02:04.8]} 18... Nb6 {[%clk 0:01:55.3]} 19. Nxb6 {[%clk 0:01:55.7]}
19... Qxb6 {[%clk 0:01:55.3]} 20. Re2 {[%clk 0:01:56.9]} 20... Rab8 {[%clk
0:01:49.9]} 21. Ng4 {[%clk 0:01:54.1]} 21... Qb3 {[%clk 0:01:45.2]} 22. Rd2
{[%clk 0:01:49.3]} 22... Qd5+ {[%clk 0:01:44.8]} 23. f3 {[%clk 0:01:08]} 23...
f5 {[%clk 0:01:38.6]} 24. Nf2 {[%clk 0:00:44.3]} 24... g6 {[%clk 0:01:29.5]} 25.
Qh6 {[%clk 0:00:44.3]} 25... Nd8 {[%clk 0:01:26.8]} 0-1

[Event "*** Titled Tuesday 3|2 Blitz"]
[Site "Chess.com"]
[Date "2016.02.02"]
[Round "3"]
[White "oskariot"]
[Black "Keranke"]
[Result "0-1"]
[WhiteElo "2329"]
[BlackElo "2529"]
[TimeControl "180+2"]
[EndTime "11:36:10 PST"]
[Termination "Keranke won by resignation"]

1. e4 {[%clk 0:03:01.9]} 1... g6 {[%clk 0:03:01]} 2. d4 {[%clk 0:02:59.7]} 2...
Bg7 {[%clk 0:03:02.2]} 3. Nc3 {[%clk 0:03:00.8]} 3... d6 {[%clk 0:03:03.4]} 4.
f4 {[%clk 0:03:01.4]} 4... a6 {[%clk 0:03:04.9]} 5. Nf3 {[%clk 0:02:59.5]} 5...
b5 {[%clk 0:03:05.8]} 6. Bd3 {[%clk 0:02:54.8]} 6... Nd7 {[%clk 0:03:06.9]} 7.
e5 {[%clk 0:02:55.7]} 7... c5 {[%clk 0:03:07.9]} 8. exd6 {[%clk 0:02:30.2]} 8...
cxd4 {[%clk 0:03:07.1]} 9. Ne4 {[%clk 0:01:59.6]} 9... Ngf6 {[%clk 0:03:07]} 10.
O-O {[%clk 0:01:42]} 10... O-O {[%clk 0:02:53.1]} 11. dxe7 {[%clk 0:01:40]}
11... Qxe7 {[%clk 0:02:55]} 12. Re1 {[%clk 0:01:41.4]} 12... Bb7 {[%clk
0:02:53]} 13. Nfg5 {[%clk 0:01:09.2]} 13... Nc5 {[%clk 0:02:45.8]} 14. Nxc5
{[%clk 0:01:04.4]} 14... Qxc5 {[%clk 0:02:46.8]} 15. Bd2 {[%clk 0:01:04.1]}
15... Rfe8 {[%clk 0:02:41.9]} 16. Nf3 {[%clk 0:00:42.2]} 16... Nd5 {[%clk
0:02:32.6]} 17. Be4 {[%clk 0:00:27.7]} 17... d3+ {[%clk 0:02:21.9]} 18. Kh1
{[%clk 0:00:26.8]} 18... Bxb2 {[%clk 0:02:13.9]} 19. Rb1 {[%clk 0:00:27.8]}
19... dxc2 {[%clk 0:01:27.4]} 20. Qxc2 {[%clk 0:00:28.9]} 20... Qxc2 {[%clk
0:01:26.1]} 21. Bxc2 {[%clk 0:00:30.8]} 21... Ba3 {[%clk 0:01:26.9]} 22. Bb3
{[%clk 0:00:31.9]} 22... Rad8 {[%clk 0:01:25.6]} 23. Ne5 {[%clk 0:00:32.7]}
23... Kg7 {[%clk 0:01:25.8]} 24. Ba5 {[%clk 0:00:33.6]} 24... Rd6 {[%clk
0:01:23.9]} 25. Rbd1 {[%clk 0:00:31]} 25... Nxf4 {[%clk 0:01:21.9]} 26. Bc3
{[%clk 0:00:29.2]} 26... Bxg2+ {[%clk 0:01:22.3]} 27. Kg1 {[%clk 0:00:29.5]}
27... Bc5+ {[%clk 0:01:23.9]} 0-1

[Event "*** Titled Tuesday 3|2 Blitz"]
[Site "Chess.com"]
[Date "2016.02.02"]
[Round "3"]
[White "Colombiano07"]
[Black "lionheart95"]
[Result "0-1"]
[WhiteElo "2175"]
[BlackElo "2188"]
[TimeControl "180+2"]
[EndTime "11:36:30 PST"]
[Termination "lionheart95 won by resignation"]

1. d4 {[%clk 0:01:32.7]} 1... Nf6 {[%clk 0:02:58.9]} 2. Bf4 {[%clk 0:01:33.1]}
2... g6 {[%clk 0:02:59.2]} 3. e3 {[%clk 0:01:34.2]} 3... Bg7 {[%clk 0:03:00.4]}
4. Nf3 {[%clk 0:01:35.9]} 4... O-O {[%clk 0:03:01.4]} 5. Nc3 {[%clk 0:01:34.8]}
5... d6 {[%clk 0:03:03.3]} 6. Be2 {[%clk 0:01:31.9]} 6... Nbd7 {[%clk
0:03:04.3]} 7. h3 {[%clk 0:01:32.2]} 7... b6 {[%clk 0:03:03.6]} 8. Qd2 {[%clk
0:01:32.6]} 8... Bb7 {[%clk 0:03:04]} 9. O-O-O {[%clk 0:01:33.8]} 9... Re8
{[%clk 0:02:57.1]} 10. g4 {[%clk 0:01:31.7]} 10... e5 {[%clk 0:02:57.1]} 11. Bg5
{[%clk 0:01:33]} 11... e4 {[%clk 0:02:52.7]} 12. Ne1 {[%clk 0:01:29]} 12... a6
{[%clk 0:02:38.6]} 13. h4 {[%clk 0:01:29.9]} 13... h6 {[%clk 0:02:35.7]} 14. Bf4
{[%clk 0:01:28]} 14... Nh7 {[%clk 0:02:26.6]} 15. g5 {[%clk 0:01:13.6]} 15... h5
{[%clk 0:02:25.2]} 16. f3 {[%clk 0:01:11.3]} 16... exf3 {[%clk 0:02:23.2]} 17.
Bxf3 {[%clk 0:01:13.2]} 17... Bxf3 {[%clk 0:02:18]} 18. Nxf3 {[%clk 0:01:15.1]}
18... b5 {[%clk 0:02:19.2]} 19. Rhf1 {[%clk 0:01:11.1]} 19... Nb6 {[%clk
0:02:19.2]} 20. Qd3 {[%clk 0:01:06.9]} 20... b4 {[%clk 0:02:08.3]} 21. Ne4
{[%clk 0:01:07.5]} 21... Qe7 {[%clk 0:02:00.1]} 22. Nfd2 {[%clk 0:01:07]} 22...
Qe6 {[%clk 0:01:55.5]} 23. Kb1 {[%clk 0:01:04.2]} 23... Nd5 {[%clk 0:01:44.5]}
24. Bg3 {[%clk 0:01:02.6]} 24... a5 {[%clk 0:01:38.8]} 25. Rf3 {[%clk
0:01:02.8]} 25... a4 {[%clk 0:01:33.6]} 26. Rdf1 {[%clk 0:01:03.9]} 26... Rf8
{[%clk 0:01:33.6]} 27. Nf6+ {[%clk 0:00:53.5]} 27... Ndxf6 {[%clk 0:01:30.3]}
28. gxf6 {[%clk 0:00:54.7]} 28... Nxf6 {[%clk 0:01:30.4]} 29. Bf4 {[%clk
0:00:51.1]} 29... Ng4 {[%clk 0:01:25.3]} 30. Bg5 {[%clk 0:00:48.9]} 30... Nh2
{[%clk 0:01:15.9]} 31. Rf6 {[%clk 0:00:49.6]} 31... Nxf1 {[%clk 0:01:07.5]} 32.
Rxe6 {[%clk 0:00:49.3]} 32... Nxd2+ {[%clk 0:01:08.3]} 33. Qxd2 {[%clk
0:00:51.2]} 33... fxe6 {[%clk 0:01:08.8]} 34. c3 {[%clk 0:00:48.8]} 34... b3
{[%clk 0:01:09.5]} 35. a3 {[%clk 0:00:45.7]} 35... Rf1+ {[%clk 0:01:08.2]} 0-1

[Event "*** Titled Tuesday 3|2 Blitz"]
[Site "Chess.com"]
[Date "2016.02.02"]
[Round "3"]
[White "maciek_92"]
[Black "amaidel"]
[Result "0-1"]
[WhiteElo "2463"]
[BlackElo "2411"]
[TimeControl "180+2"]
[EndTime "11:36:36 PST"]
[Termination "amaidel won by resignation"]

1. e4 {[%clk 0:02:58.6]} 1... e5 {[%clk 0:02:59.9]} 2. Nf3 {[%clk 0:02:57.3]}
2... Nf6 {[%clk 0:02:58.9]} 3. Nxe5 {[%clk 0:02:22]} 3... d6 {[%clk 0:02:59]} 4.
Nf3 {[%clk 0:02:21.2]} 4... Nxe4 {[%clk 0:03:00]} 5. Nc3 {[%clk 0:02:21.1]} 5...
Nf6 {[%clk 0:03:01.1]} 6. d4 {[%clk 0:02:21.5]} 6... Be7 {[%clk 0:03:02.3]} 7.
Bd3 {[%clk 0:02:22.3]} 7... O-O {[%clk 0:03:03.1]} 8. O-O {[%clk 0:02:23.9]}
8... d5 {[%clk 0:03:04]} 9. h3 {[%clk 0:02:25.3]} 9... Re8 {[%clk 0:03:04.9]}
10. Bf4 {[%clk 0:02:25.9]} 10... c6 {[%clk 0:03:05.2]} 11. Ne5 {[%clk
0:02:24.8]} 11... Nbd7 {[%clk 0:03:05.3]} 12. Ne2 {[%clk 0:02:25.8]} 12... Nf8
{[%clk 0:03:06]} 13. Bh2 {[%clk 0:02:20.7]} 13... Ng6 {[%clk 0:03:05.6]} 14. f4
{[%clk 0:02:19.8]} 14... Bd6 {[%clk 0:03:02.6]} 15. Ng3 {[%clk 0:02:15.8]} 15...
Qb6 {[%clk 0:03:01.7]} 16. Kh1 {[%clk 0:02:10.1]} 16... Qxb2 {[%clk 0:02:56.2]}
17. Nf5 {[%clk 0:01:28.9]} 17... Bxf5 {[%clk 0:02:53.8]} 18. Bxf5 {[%clk
0:01:30.8]} 18... Ne4 {[%clk 0:02:49.6]} 19. Rb1 {[%clk 0:01:27.6]} 19... Qxa2
{[%clk 0:02:47.1]} 20. Bxe4 {[%clk 0:01:28.7]} 20... dxe4 {[%clk 0:02:47.5]} 21.
Rxb7 {[%clk 0:01:30.3]} 21... Bxe5 {[%clk 0:02:42.6]} 22. fxe5 {[%clk
0:01:32.2]} 22... Re7 {[%clk 0:02:41.4]} 23. Rxe7 {[%clk 0:01:28.1]} 23... Nxe7
{[%clk 0:02:43.3]} 24. Qg4 {[%clk 0:01:29.2]} 24... Qd5 {[%clk 0:02:42.2]} 25.
c3 {[%clk 0:01:26.2]} 25... a5 {[%clk 0:02:42.1]} 26. Rf6 {[%clk 0:01:14.3]}
26... a4 {[%clk 0:02:22.4]} 27. Rd6 {[%clk 0:01:15.2]} 27... Qc4 {[%clk
0:01:46.6]} 28. Qd7 {[%clk 0:01:14.4]} 28... Ng6 {[%clk 0:01:25.3]} 29. Rxc6
{[%clk 0:01:15]} 29... Qf1+ {[%clk 0:01:24.6]} 30. Bg1 {[%clk 0:01:16.1]} 30...
e3 {[%clk 0:01:18.1]} 31. e6 {[%clk 0:01:17.2]} 31... e2 {[%clk 0:01:06.5]} 32.
Rc8+ {[%clk 0:01:13.8]} 32... Rxc8 {[%clk 0:01:06.8]} 33. Qxc8+ {[%clk
0:01:13.6]} 33... Nf8 {[%clk 0:01:08]} 34. exf7+ {[%clk 0:01:07.8]} 34... Kxf7
{[%clk 0:00:57.6]} 0-1

[Event "*** Titled Tuesday 3|2 Blitz"]
[Site "Chess.com"]
[Date "2016.02.02"]
[Round "3"]
[White "gumersindo"]
[Black "LADIESGET2KNOWME"]
[Result "1-0"]
[WhiteElo "2239"]
[BlackElo "2321"]
[TimeControl "180+2"]
[EndTime "11:36:48 PST"]
[Termination "gumersindo won by resignation"]

1. d4 {[%clk 0:03:01.9]} 1... Nf6 {[%clk 0:03:01]} 2. c4 {[%clk 0:03:02.6]} 2...
g6 {[%clk 0:03:02.5]} 3. Nc3 {[%clk 0:03:03.3]} 3... Bg7 {[%clk 0:03:04.4]} 4.
e4 {[%clk 0:03:03.7]} 4... d6 {[%clk 0:03:05.9]} 5. Nf3 {[%clk 0:03:04.7]} 5...
O-O {[%clk 0:03:07.5]} 6. Be2 {[%clk 0:03:06.1]} 6... e5 {[%clk 0:03:09]} 7. O-O
{[%clk 0:03:07.5]} 7... Nc6 {[%clk 0:03:10.6]} 8. d5 {[%clk 0:03:06]} 8... Ne7
{[%clk 0:03:11.8]} 9. Ne1 {[%clk 0:03:07.6]} 9... Nd7 {[%clk 0:03:09]} 10. Be3
{[%clk 0:03:08.3]} 10... f5 {[%clk 0:03:10.2]} 11. f3 {[%clk 0:03:09.8]} 11...
f4 {[%clk 0:03:11.8]} 12. Bf2 {[%clk 0:03:11.1]} 12... g5 {[%clk 0:03:13.5]} 13.
a4 {[%clk 0:03:10.9]} 13... Ng6 {[%clk 0:03:14.3]} 14. Nd3 {[%clk 0:03:11.3]}
14... Rf7 {[%clk 0:03:14.7]} 15. c5 {[%clk 0:03:12.1]} 15... Nf6 {[%clk
0:03:15.9]} 16. cxd6 {[%clk 0:03:06.2]} 16... cxd6 {[%clk 0:03:17.8]} 17. a5
{[%clk 0:02:57]} 17... Bf8 {[%clk 0:03:17.2]} 18. Nb5 {[%clk 0:02:56.4]} 18...
g4 {[%clk 0:03:17]} 19. Nxa7 {[%clk 0:02:55.4]} 19... Bd7 {[%clk 0:03:11.3]} 20.
Bb6 {[%clk 0:02:51.1]} 20... Qe7 {[%clk 0:03:11.3]} 21. fxg4 {[%clk 0:02:50.7]}
21... Nxe4 {[%clk 0:03:11.2]} 22. Nf2 {[%clk 0:02:47.9]} 22... Nxf2 {[%clk
0:02:58.1]} 23. Rxf2 {[%clk 0:02:41.9]} 23... e4 {[%clk 0:02:59.4]} 24. Bb5
{[%clk 0:02:42.9]} 24... e3 {[%clk 0:02:45.5]} 25. Rc2 {[%clk 0:02:42.1]} 25...
Bxb5 {[%clk 0:02:27]} 26. Nxb5 {[%clk 0:02:42.4]} 26... f3 {[%clk 0:02:28.3]}
27. gxf3 {[%clk 0:02:34.6]} 27... Ne5 {[%clk 0:02:23.8]} 28. Nd4 {[%clk
0:02:33.5]} 28... Bh6 {[%clk 0:02:07.6]} 29. Rg2 {[%clk 0:02:30.2]} 29... Kh8
{[%clk 0:01:48.9]} 30. Nf5 {[%clk 0:02:30.5]} 30... Rxf5 {[%clk 0:01:42.6]} 31.
gxf5 {[%clk 0:02:30.8]} 31... Rf8 {[%clk 0:01:35]} 32. Qe2 {[%clk 0:02:23.5]}
32... Rxf5 {[%clk 0:01:34.4]} 33. Rf1 {[%clk 0:02:25]} 33... Ng6 {[%clk
0:01:18.6]} 34. Bd4+ {[%clk 0:02:20.2]} 34... Bg7 {[%clk 0:00:56.1]} 35. Qxe3
{[%clk 0:02:20]} 35... Qxe3+ {[%clk 0:00:43.6]} 36. Bxe3 {[%clk 0:02:21.2]}
36... Rxd5 {[%clk 0:00:43.2]} 37. Rc1 {[%clk 0:02:13.9]} 37... Rxa5 {[%clk
0:00:28.9]} 38. Rc8+ {[%clk 0:02:11.1]} 38... Bf8 {[%clk 0:00:23.8]} 39. Bh6
{[%clk 0:01:57.9]} 39... Ra2 {[%clk 0:00:08.9]} 1-0

[Event "*** Titled Tuesday 3|2 Blitz"]
[Site "Chess.com"]
[Date "2016.02.02"]
[Round "3"]
[White "kleinebeer98"]
[Black "manubibi"]
[Result "1-0"]
[WhiteElo "2454"]
[BlackElo "2417"]
[TimeControl "180+2"]
[EndTime "11:36:57 PST"]
[Termination "kleinebeer98 won by resignation"]

1. e4 {[%clk 0:03:01.9]} 1... c5 {[%clk 0:03:00]} 2. Nf3 {[%clk 0:03:00.1]} 2...
d6 {[%clk 0:03:00.9]} 3. d4 {[%clk 0:03:01.5]} 3... cxd4 {[%clk 0:03:02.7]} 4.
Nxd4 {[%clk 0:03:03.4]} 4... Nf6 {[%clk 0:03:04.2]} 5. Nc3 {[%clk 0:03:04.5]}
5... a6 {[%clk 0:03:04.2]} 6. Rg1 {[%clk 0:02:55]} 6... b5 {[%clk 0:02:58.1]} 7.
g4 {[%clk 0:02:54.9]} 7... b4 {[%clk 0:02:54.9]} 8. Nd5 {[%clk 0:02:56.1]} 8...
Nfd7 {[%clk 0:02:52.4]} 9. Nxb4 {[%clk 0:02:43.1]} 9... Bb7 {[%clk 0:02:53.6]}
10. Nd5 {[%clk 0:02:19.8]} 10... e6 {[%clk 0:02:53]} 11. Nc3 {[%clk 0:02:18.6]}
11... Nc6 {[%clk 0:02:49.7]} 12. Be3 {[%clk 0:02:17]} 12... Be7 {[%clk
0:02:50.1]} 13. Be2 {[%clk 0:02:08.7]} 13... Qa5 {[%clk 0:02:50.3]} 14. Nb3
{[%clk 0:02:06.8]} 14... Qc7 {[%clk 0:02:51.3]} 15. Qd2 {[%clk 0:02:01]} 15...
O-O {[%clk 0:02:52.3]} 16. O-O-O {[%clk 0:02:02.1]} 16... Rfc8 {[%clk
0:02:45.9]} 17. f4 {[%clk 0:01:55.7]} 17... Nb4 {[%clk 0:02:45.7]} 18. a3 {[%clk
0:01:52]} 18... a5 {[%clk 0:02:32.3]} 19. axb4 {[%clk 0:01:36.6]} 19... axb4
{[%clk 0:02:31.7]} 20. Nb5 {[%clk 0:01:37.9]} 20... Qc6 {[%clk 0:02:09.2]} 21.
Na7 {[%clk 0:01:33.5]} 21... Qa4 {[%clk 0:02:07.7]} 22. Qd4 {[%clk 0:00:57.6]}
22... Rxa7 {[%clk 0:01:38.3]} 23. Qxa7 {[%clk 0:00:54.3]} 23... Qxb3 {[%clk
0:01:39.6]} 24. Bd3 {[%clk 0:00:51.9]} 24... Bf6 {[%clk 0:01:08.8]} 25. e5
{[%clk 0:00:35.8]} 25... dxe5 {[%clk 0:00:58.5]} 26. Qxb7 {[%clk 0:00:35.4]}
26... Rxc2+ {[%clk 0:00:59.3]} 27. Bxc2 {[%clk 0:00:35.7]} 27... Qxe3+ {[%clk
0:01:00.7]} 28. Kb1 {[%clk 0:00:37.3]} 28... Nf8 {[%clk 0:01:00.9]} 29. g5
{[%clk 0:00:35.7]} 29... b3 {[%clk 0:00:50.2]} 30. Bxb3 {[%clk 0:00:32.9]} 30...
Be7 {[%clk 0:00:50]} 31. Qxe7 {[%clk 0:00:31.6]} 31... Qxb3 {[%clk 0:00:49.1]}
32. Rd8 {[%clk 0:00:31.4]} 32... Qd3+ {[%clk 0:00:50.3]} 33. Rxd3 {[%clk
0:00:31.3]} 1-0

[Event "*** Titled Tuesday 3|2 Blitz"]
[Site "Chess.com"]
[Date "2016.02.02"]
[Round "3"]
[White "Sawyer2908"]
[Black "Jahonas"]
[Result "0-1"]
[WhiteElo "2261"]
[BlackElo "2165"]
[TimeControl "180+2"]
[EndTime "11:37:11 PST"]
[Termination "Jahonas won by resignation"]

1. e4 {[%clk 0:02:59.7]} 1... c5 {[%clk 0:03:00.8]} 2. Nf3 {[%clk 0:02:58.5]}
2... d6 {[%clk 0:03:01.9]} 3. d4 {[%clk 0:02:59.3]} 3... cxd4 {[%clk 0:03:03.1]}
4. Nxd4 {[%clk 0:03:00]} 4... Nf6 {[%clk 0:03:04.2]} 5. Nc3 {[%clk 0:03:01]}
5... a6 {[%clk 0:03:05.5]} 6. h3 {[%clk 0:03:00.6]} 6... e6 {[%clk 0:03:06.3]}
7. g4 {[%clk 0:03:00.2]} 7... Nc6 {[%clk 0:03:04.4]} 8. Bg2 {[%clk 0:02:56.8]}
8... Qc7 {[%clk 0:03:03.4]} 9. Be3 {[%clk 0:02:56.1]} 9... Nd7 {[%clk
0:02:58.5]} 10. Qe2 {[%clk 0:02:54.9]} 10... Nde5 {[%clk 0:02:54.3]} 11. O-O-O
{[%clk 0:02:46.9]} 11... Bd7 {[%clk 0:02:50.5]} 12. f4 {[%clk 0:02:42.6]} 12...
Nxd4 {[%clk 0:02:51]} 13. Bxd4 {[%clk 0:02:43.4]} 13... Nc4 {[%clk 0:02:48]} 14.
Rhe1 {[%clk 0:02:19.7]} 14... Rc8 {[%clk 0:02:41]} 15. Kb1 {[%clk 0:02:04.5]}
15... b5 {[%clk 0:02:39.7]} 16. e5 {[%clk 0:01:48.9]} 16... dxe5 {[%clk
0:02:38.9]} 17. fxe5 {[%clk 0:01:47.9]} 17... Bb4 {[%clk 0:02:28.4]} 18. Rd3
{[%clk 0:01:18.2]} 18... O-O {[%clk 0:02:21]} 19. Be4 {[%clk 0:01:13.8]} 19...
Bc6 {[%clk 0:02:18.8]} 20. Red1 {[%clk 0:01:11.9]} 20... Bxc3 {[%clk 0:02:17]}
21. Bxc3 {[%clk 0:01:06.2]} 21... Bxe4 {[%clk 0:02:16.7]} 22. Qxe4 {[%clk
0:01:06.3]} 22... b4 {[%clk 0:01:44.3]} 23. Bxb4 {[%clk 0:00:44.4]} 23... Qxe5
{[%clk 0:01:31.1]} 24. Qxe5 {[%clk 0:00:27.3]} 24... Nxe5 {[%clk 0:01:31.3]} 25.
Bxf8 {[%clk 0:00:26.2]} 25... Nxd3 {[%clk 0:01:31.8]} 26. Rxd3 {[%clk
0:00:27.1]} 26... Kxf8 {[%clk 0:01:31.8]} 27. Rd6 {[%clk 0:00:27.7]} 27... a5
{[%clk 0:01:32.2]} 28. c3 {[%clk 0:00:28.8]} 28... h5 {[%clk 0:01:30.9]} 29. Kc2
{[%clk 0:00:28.3]} 29... hxg4 {[%clk 0:01:30.9]} 30. hxg4 {[%clk 0:00:29.6]}
30... Rc4 {[%clk 0:01:31.6]} 31. Rd4 {[%clk 0:00:26.9]} 31... Rxd4 {[%clk
0:01:32.5]} 32. cxd4 {[%clk 0:00:27.8]} 32... g5 {[%clk 0:01:32.2]} 33. a3
{[%clk 0:00:24]} 33... Ke7 {[%clk 0:01:31.5]} 34. Kd3 {[%clk 0:00:24.1]} 34...
f5 {[%clk 0:01:31.9]} 35. d5 {[%clk 0:00:20.3]} 35... exd5 {[%clk 0:01:26.9]}
36. gxf5 {[%clk 0:00:20.5]} 36... g4 {[%clk 0:01:28.1]} 37. b4 {[%clk
0:00:20.5]} 37... g3 {[%clk 0:01:26.5]} 38. Ke3 {[%clk 0:00:19.9]} 38... axb4
{[%clk 0:01:24.5]} 39. axb4 {[%clk 0:00:20.6]} 39... d4+ {[%clk 0:01:25.6]} 40.
Kf3 {[%clk 0:00:21.2]} 40... d3 {[%clk 0:01:27]} 41. b5 {[%clk 0:00:22.5]} 41...
d2 {[%clk 0:01:27.8]} 42. b6 {[%clk 0:00:23.4]} 42... d1=Q+ {[%clk 0:01:28.5]}
0-1

[Event "*** Titled Tuesday 3|2 Blitz"]
[Site "Chess.com"]
[Date "2016.02.02"]
[Round "3"]
[White "tac49"]
[Black "Er_is_geen_hoop_meer"]
[Result "1-0"]
[WhiteElo "2464"]
[BlackElo "2298"]
[TimeControl "180+2"]
[EndTime "11:37:19 PST"]
[Termination "tac49 won by resignation"]

1. e4 {[%clk 0:03:00.8]} 1... c5 {[%clk 0:02:59.7]} 2. Nf3 {[%clk 0:02:59.1]}
2... e6 {[%clk 0:03:01]} 3. g3 {[%clk 0:02:58.9]} 3... g5 {[%clk 0:03:00.3]} 4.
d4 {[%clk 0:02:32.8]} 4... g4 {[%clk 0:03:00.4]} 5. Ne5 {[%clk 0:02:30.4]} 5...
cxd4 {[%clk 0:03:01.5]} 6. Nxg4 {[%clk 0:02:13.7]} 6... Bg7 {[%clk 0:03:02.6]}
7. h4 {[%clk 0:02:05.8]} 7... h5 {[%clk 0:03:03.5]} 8. Nh2 {[%clk 0:02:06.1]}
8... Nc6 {[%clk 0:03:03.6]} 9. Bg2 {[%clk 0:02:03.8]} 9... Nf6 {[%clk 0:03:04]}
10. O-O {[%clk 0:02:03.1]} 10... d5 {[%clk 0:03:02.8]} 11. Nd2 {[%clk
0:02:01.9]} 11... e5 {[%clk 0:03:00.5]} 12. exd5 {[%clk 0:02:01.8]} 12... Nxd5
{[%clk 0:03:02.4]} 13. Ne4 {[%clk 0:02:01.2]} 13... Bf5 {[%clk 0:02:59.2]} 14.
c4 {[%clk 0:01:56]} 14... dxc3 {[%clk 0:02:48.4]} 15. Nc5 {[%clk 0:01:49.9]}
15... e4 {[%clk 0:02:42.9]} 16. Nxb7 {[%clk 0:01:42.2]} 16... Qd7 {[%clk
0:02:42.9]} 17. Nc5 {[%clk 0:01:41.7]} 17... Qd6 {[%clk 0:02:43.5]} 18. Nxe4
{[%clk 0:01:42]} 18... Bxe4 {[%clk 0:02:43.3]} 19. Bxe4 {[%clk 0:01:43.9]} 19...
cxb2 {[%clk 0:02:41.6]} 20. Bxb2 {[%clk 0:01:44.7]} 20... Bxb2 {[%clk
0:02:43.5]} 21. Qxd5 {[%clk 0:01:44.8]} 21... Qxd5 {[%clk 0:02:42.3]} 22. Bxd5
{[%clk 0:01:46.7]} 22... Rc8 {[%clk 0:02:34.4]} 23. Rab1 {[%clk 0:01:43.1]}
23... Bd4 {[%clk 0:02:24.6]} 24. Nf3 {[%clk 0:01:41.7]} 24... Bb6 {[%clk
0:02:25.4]} 25. Rfc1 {[%clk 0:01:37.6]} 25... Ne7 {[%clk 0:02:26.7]} 26. Rxc8+
{[%clk 0:01:36.1]} 26... Nxc8 {[%clk 0:02:28.6]} 27. Re1+ {[%clk 0:01:32]} 27...
Kf8 {[%clk 0:02:20.8]} 28. Ne5 {[%clk 0:01:31.6]} 28... Nd6 {[%clk 0:02:18.7]}
29. Nd7+ {[%clk 0:01:10.7]} 29... Kg7 {[%clk 0:02:19.8]} 30. Nxb6 {[%clk
0:01:11.8]} 30... axb6 {[%clk 0:02:21.7]} 31. Rb1 {[%clk 0:01:12.7]} 31... b5
{[%clk 0:02:22.8]} 32. Bb3 {[%clk 0:01:10]} 32... Ne4 {[%clk 0:01:57.7]} 33. Rd1
{[%clk 0:01:11.9]} 33... Nc5 {[%clk 0:01:40.5]} 34. Rd5 {[%clk 0:01:09.5]} 34...
Rc8 {[%clk 0:01:35]} 35. Rxh5 {[%clk 0:01:08.4]} 35... b4 {[%clk 0:01:34.7]} 36.
Re5 {[%clk 0:01:01.5]} 36... Kf6 {[%clk 0:01:28.8]} 37. Re3 {[%clk 0:01:00.7]}
37... Rc7 {[%clk 0:01:22.7]} 38. Kg2 {[%clk 0:00:58.5]} 38... Kf5 {[%clk
0:01:21.5]} 39. Rf3+ {[%clk 0:00:55.6]} 39... Kg6 {[%clk 0:01:22.2]} 40. Rf4
{[%clk 0:00:54.6]} 40... Nd3 {[%clk 0:01:19.8]} 41. Rd4 {[%clk 0:00:52.4]} 41...
Rc3 {[%clk 0:01:12.7]} 42. Rxd3 {[%clk 0:00:52]} 42... Rxd3 {[%clk 0:01:10.8]}
43. Bc2 {[%clk 0:00:52.2]} 1-0